[Event "Bangabandhu Premier Div League 2022"]
[Site "Dhaka"]
[Date "2022.12.05"]
[Round "6.3"]
[White "Sankalan Shah"]
[Black "Abdul, Momin"]
[Result "1-0"]
[ECO "D37"]
[WhiteElo "2218"]
[BlackElo "1900"]
[Annotator "TA"]
[PlyCount "97"]
[EventDate "2022.11.30"]
[EventType "team-tourn"]
[EventCountry "BAN"]
[SourceTitle "playchess.com"]
[Source "ChessBase"]
[SourceQuality "1"]
[TimeControl "40/5400+30:1800+30"]

{[%evp 9,97,14,37,15,37,36,98,86,88,90,86,82,109,94,127,140,170,162,180,173,243,171,200,210,376,340,461,441,597,658,649,624,796,784,779,734,788,770,763,439,410,429,482,488,498,487,389,389,595,572,566,543,1345,443,445,445,433,439,439,418,430,372,447,424,312,253,560,423,1225,1402,846,655,1370,1429,1681,1654,1642,1623,1527,1439,1288,1173,2479,2395,1449,922,29988,29989,29990,29991]} 1. d4 {[%emt 0:00:02]} d5 {[%emt 0:09:04]} 2. c4 {[%emt 0:00:07]} e6 {[%emt 0:00:01]} 3. Nf3 {[%emt 0:00:15]} Nf6 {[%emt 0:00:02]} 4. Nc3 {[%emt 0:00:08]} Be7 {[%emt 0:00:47]} 5. Bf4 {[%emt 0:00:02]} a6 {[%emt 0:00:58]} 6. c5 {[%emt 0:01:34] D37: Queen's Gambit Declined: 5 Bf4.} c6 {[%emt 0:00:02]} 7. e3 {[%emt 0:01:00]} b5 {[%emt 0:00:26]} (7... Nbd7 $14) 8. b4 {[%emt 0:06:08] White is much more active. White is better.} Nbd7 {[%emt 0:04:20] [#]} 9. a4 $146 {[%emt 0:01:56][%cal Ra4b5] axb5 is the strong threat.} ({Predecessor:} 9. Ne5 Nxe5 10. Bxe5 a5 11. a3 axb4 12. axb4 Bb7 13. Bd3 O-O 14. O-O Ra6 15. Rxa6 Bxa6 {½-½ (41) Bromberger,G (1399)-Schwarz,V (1515) Untergriesbach 2003}) 9... Bb7 {[%emt 0:02:46]} 10. Bd3 {[%emt 0:00:57]} O-O {[%emt 0:02:59]} 11. h3 {[%emt 0:03:04]} Re8 {[%emt 0:03:23]} 12. O-O {[%emt 0:00:43]} g6 {[%emt 0:00:43]} 13. Qc2 {[%emt 0:06:43]} Nh5 {[%emt 0:02:07] [#]} 14. Bh2 $1 {[%emt 0:04:39]} Qc8 {[%emt 0:08:33]} (14... Rf8 {was worth a try.} 15. Ra2 Ng7 16. axb5 cxb5) 15. Ra2 {[%emt 0:08:08]} f5 {[%emt 0:05:36]} 16. Rfa1 {[%emt 0:03:49]} Bd8 $2 {[%emt 0:01:46]} (16... bxa4 17. Nxa4 (17. Rxa4 Bf6 $18) (17. Qxa4 Nhf6 $16) 17... Nhf6) 17. axb5 $18 {[%emt 0:16:01]} cxb5 {[%emt 0:05:34] [#]} 18. Bxb5 $1 {[%emt 0:06:34][%mdl 512]} axb5 {[%emt 0:00:26]} (18... Nhf6 19. Bxd7) 19. Rxa8 {[%emt 0:01:19]} Bxa8 {[%emt 0:00:03]} 20. Nxb5 {[%emt 0:00:06] Black must now prevent Nd6.} Rf8 {[%emt 0:08:24]} 21. Nd6 {[%emt 0:07:19]} Qb8 {[%emt 0:00:46]} 22. Qa4 {[%emt 0:02:32][%csl LRa8,LRd7]} Ndf6 {[%emt 0:42:44]} 23. Qxa8 {[%emt 0:02:35]} Qxb4 {[%emt 0:00:00]} 24. Qa3 {[%emt 0:01:45]} Qxa3 {[%emt 0:00:00]} 25. Rxa3 {[%emt 0:00:01]} Ne4 {[%emt 0:00:00]} 26. Ra7 {[%emt 0:04:45] Prevents Be7.} f4 {[%emt 0:00:00]} 27. Bxf4 {[%emt 0:05:06]} Nxf4 {[%emt 0:00:00]} 28. exf4 {[%emt 0:00:01]} Rxf4 {[%emt 0:00:00]} (28... Nxd6 $142 29. cxd6 Bf6) 29. Nxe4 {[%emt 0:01:47]} dxe4 {[%emt 0:00:00][%mdl 4096] Endgame KRB-KRN} 30. Ne5 {[%emt 0:00:17]} Bf6 {[%emt 0:00:00]} 31. Rd7 {[%emt 0:08:53]} (31. c6 $142 {Intending c7 and mate.} Bxe5 32. dxe5) 31... Bxe5 {[%emt 0:00:00]} 32. dxe5 {[%emt 0:00:01] KR-KR} e3 {[%emt 0:00:00]} 33. fxe3 {[%emt 0:00:19]} Rc4 {[%emt 0:00:00]} 34. Rc7 {[%emt 0:00:54]} Kf8 {[%emt 0:00:00]} 35. Kf2 {[%emt 0:01:55]} ({Less strong is} 35. Rxh7 Rxc5 36. Kf2 Rxe5 $16) 35... h5 {[%emt 0:00:00]} 36. Kf3 {[%emt 0:02:01]} g5 {[%emt 0:00:00]} 37. c6 {[%emt 0:01:05] And now Ke2 would win.} h4 $2 {[%emt 0:00:00]} (37... Kg8 {is a better chance.} 38. Rc8+ Kg7) 38. Rc8+ {[%emt 0:01:48]} Ke7 {[%emt 0:00:00]} (38... Kg7 $142 39. c7 Kh7) 39. Rg8 {[%emt 0:00:20]} Rxc6 {[%emt 0:00:00]} 40. Rxg5 {[%emt 0:00:03]} Kf7 {[%emt 0:00:00] Prevents Rg7+.} 41. Rg4 {[%emt 0:04:39]} Rc5 {[%emt 0:00:00]} 42. Rxh4 {[%emt 0:00:33]} Rxe5 {[%emt 0:00:00]} 43. Rf4+ {[%emt 0:01:01]} Kg6 {[%emt 0:00:00]} 44. g4 {[%emt 0:00:21][%cal Bg2g4,Bg4g5][%mdl 32] aiming for Re4.} Ra5 {[%emt 0:00:00]} 45. h4 {[%emt 0:00:21] Threatens to win with g5.} Rb5 {[%emt 0:00:00]} 46. g5 {[%emt 0:00:25]} Kh5 {[%emt 0:00:00]} 47. Kg3 {[%emt 0:00:16] White threatens Rf6 and mate.} Re5 {[%emt 0:00:00]} 48. Rf6 {[%emt 0:01:28][%csl Gg5][%cal Rf6h6]} Rxe3+ {[%emt 0:43:00]} 49. Kf4 {[%emt 0:00:13] Black got outplayed after the opening.   Weighted Error Value: White=0.43/Black=0.61} 1-0

[Event "Bangabandhu Premier Div League 2022"]
[Site "Dhaka"]
[Date "2022.12.05"]
[Round "6.4"]
[White "Zia, Tahsin Tajwar"]
[Black "Mehdi Hasan Parag"]
[Result "1/2-1/2"]
[ECO "D43"]
[WhiteElo "2241"]
[BlackElo "2185"]
[Annotator "TA"]
[PlyCount "140"]
[EventDate "2022.12.01"]
[EventCountry "BAN"]
[SourceTitle "playchess.com"]
[Source "ChessBase"]
[SourceQuality "1"]
[TimeControl "40/5400+30:1800+30"]

{[%evp 9,140,0,19,0,3,1,18,25,23,22,25,18,23,22,32,0,21,16,27,-13,-10,-50,-6,-61,-55,-50,-35,-167,-66,-55,-22,-18,-14,-16,-12,-19,-9,-22,-6,-6,0,0,0,0,0,0,0,0,0,0,0,0,-2,-15,0,0,0,0,0,0,21,0,0,0,0,0,3,3,52,48,49,12,17,8,11,8,15,8,8,0,2,8,13,14,22,25,57,26,200,138,104,66,68,35,45,30,31,25,26,20,24,28,28,28,28,28,28,28,72,66,65,8,8,8,8,8,8,8,461,8,8,8,461,0,0,8,133,133,7436,0,0,-8,0]} 1. d4 {[%emt 0:00:30]} d5 {[%emt 0:00:05]} 2. c4 {[%emt 0:00:11]} c6 {[%emt 0:00:08]} 3. Nf3 {[%emt 0:01:03]} Nf6 {[%emt 0:00:00]} 4. Nc3 e6 {[%emt 0:00:18]} 5. Qd3 Nbd7 {[%emt 0:01:31]} 6. g3 {D43: Semi-Slav: 5 Bg5 h6.} b6 $1 {[%emt 1:31:28][%mdl 4] is recently more successful than 6...Bd6.} 7. Bg2 {[%emt 0:03:16]} Ba6 {[%emt 0:00:30]} 8. b3 {[%emt 1:29:30]} Rc8 {[%emt 0:00:00]} 9. O-O Bb4 {[%emt 0:00:00]} 10. Bb2 O-O {[%emt 0:01:30]} 11. Rfd1 {[%emt 0:01:30]} c5 {[%emt 0:00:00] [#]} 12. dxc5 $146 ({Predecessor:} 12. Nb5 Bxb5 13. cxb5 c4 14. bxc4 dxc4 15. Qc2 c3 16. Bc1 Qc7 17. Ne1 Qc4 18. Rb1 {1-0 (35) Banusz,T (2611)-Tatar Kis,S (2366) Hungary 2016}) 12... bxc5 {[%emt 0:01:00]} 13. e3 {[%emt 0:01:00]} Qe7 {[%emt 0:00:00]} 14. Qc2 {[%cal Rc4d5]} dxc4 {[%emt 0:01:00]} 15. e4 {[%emt 0:01:00]} Ng4 {[%emt 0:00:00]} 16. Ne2 {[%emt 0:00:00]} (16. bxc4 $11 Bxc4 17. a3) 16... c3 $15 17. Nxc3 c4 $1 {[%emt 0:00:00]} 18. bxc4 {[%emt 0:00:00] [#]} ({White should play} 18. h3 $15 Nge5 19. Nxe5 Nxe5 20. Na4 cxb3 21. Qxb3) 18... Bxc4 {[%emt 0:00:00]} (18... Nb6 $1 $19 {[%cal Rb6c4]} 19. e5 (19. a3 $2 Bc5 $19) 19... Nxc4) 19. h3 {[#]} Nxf2 {[%emt 0:02:30]} 20. Qxf2 {[%emt 0:00:00]} Bc5 {[%emt 0:00:00]} 21. Nd4 {[%emt 0:00:00] Black must now prevent Na4.} e5 {[%emt 0:00:00]} 22. Nd5 {[%emt 0:00:00]} Bxd5 {[%emt 0:00:00]} 23. exd5 {[%emt 0:00:00]} Qd6 {[%emt 0:00:00]} (23... Qg5 $5 {[%cal Rf7f5]}) 24. Kh2 {[%emt 0:00:00][%cal Od4f5]} Bxd4 {[%emt 0:00:00]} 25. Bxd4 {[%emt 0:00:00]} exd4 {[%emt 0:00:00]} 26. Qxd4 {[%emt 0:05:30]} Ne5 {[%emt 0:00:00]} 27. Rac1 {[%emt 0:00:00] Prevents Rc2.} a5 {[%emt 0:00:00]} 28. Qf4 {[%emt 0:00:00]} Rcd8 {[%emt 0:00:00]} 29. Rd2 {[%emt 0:00:00]} Rfe8 {[%emt 0:00:00]} 30. Qa4 {[%emt 0:00:00]} h5 {[%emt 0:00:00][%cal Bh7h5,Bh5h4][%mdl 32]} 31. Qf4 {[%emt 0:00:00]} Re7 {[%emt 0:00:00]} 32. Rc3 {[%emt 0:00:00]} g6 {[%emt 0:00:00]} 33. Qd4 {[%emt 0:00:36]} f6 {[%emt 0:00:00]} 34. Qc5 {[%emt 0:00:29]} Nf7 {[%emt 0:00:00]} 35. Qxa5 {[%emt 0:01:35]} (35. Qxd6 {simplifies} Nxd6 36. Rc6 Kf7 37. a4) 35... h4 {[%emt 0:00:00]} 36. Qa3 {[%emt 0:00:05]} Qe5 {[%emt 0:00:00]} 37. Rcc2 {[%emt 0:02:45]} Nd6 {[%emt 0:00:00]} 38. Qc3 {[%emt 0:00:00]} Qg5 {[%emt 0:00:00]} (38... hxg3+ $11 39. Qxg3 Qxg3+ 40. Kxg3 Ra7) 39. gxh4 $1 $14 {[%emt 0:00:00]} Qxh4 {[%emt 0:00:00]} 40. Qg3 {[%emt 0:00:00]} (40. Rd4 $5 {[%cal Rd4h4]} Qh6 41. Rb4 $16) 40... Qh6 {[%emt 0:00:00]} (40... Qxg3+ {simplifies} 41. Kxg3 Ra7 42. Kh2 Rdd7) 41. Rf2 {[%emt 0:30:30][%cal Bd2f2,Bf2f4,Bf4b4,Bb4b6][%mdl 32]} Re3 {[%emt 0:35:50]} 42. Qf4 {[%emt 0:01:13]} Qxf4+ {[%emt 0:00:42]} 43. Rxf4 {[%emt 0:00:07]} f5 {[%emt 0:00:30]} 44. Rb4 {[%emt 0:00:00]} Kf7 {[%emt 0:00:00]} 45. Rb6 {[%emt 0:00:00]} Kf6 {[%emt 0:00:00]} 46. a4 {[%emt 0:00:00]} f4 {[%emt 0:00:00]} 47. a5 {[%emt 0:00:00] Ra2 is the strong threat.} Ke5 {[%emt 0:00:00]} 48. Rc7 {[%emt 0:00:00] And now a6 would win.} (48. Rf2 {seems wilder.} Rc8 49. a6 Rcc3 50. Ra2) 48... Kd4 $2 {[%emt 0:00:00]} (48... Ra3 $1 $11 {and Black has nothing to worry.}) 49. Rb4+ {[%emt 0:00:00]} Ke5 {[%emt 0:07:58]} 50. a6 {[%emt 0:00:00] aiming for a7. White is more active.} Ra3 $1 {[%emt 0:00:00]} 51. a7 {[%emt 0:05:10]} Ra2 $1 {[%emt 0:01:00]} 52. Re7+ {[%emt 0:00:30]} Kf5 $1 {[%emt 0:00:30]} 53. Rb8 {[%emt 0:00:30]} Rc8 {[%emt 0:00:30][%cal Oa2a7]} 54. Rxc8 {[%emt 0:00:00]} (54. Re6 {is more complex.} f3 55. Rxc8 Nxc8 56. a8=R) 54... Nxc8 $11 {[%emt 0:00:30][%mdl 4096] Endgame KRB-KRN} 55. a8=Q {Dancing on a razor blade.} Rxa8 {[%emt 0:00:00]} 56. Be4+ {[%emt 0:01:30]} Kg5 {[%emt 0:01:00]} 57. Re6 {[%emt 0:00:30]} Ra2+ {[%emt 0:00:00]} 58. Kg1 {[%emt 0:00:30]} Kh4 {[%emt 0:00:00]} 59. Rxg6 {[%emt 0:00:00]} Rd2 {[%emt 0:00:00][%cal Oc8e7]} 60. Rg2 {[%emt 0:01:00]} (60. Rg4+ $14 Kxh3 61. Bf5 (61. Rxf4 Ne7 $11) 61... Rxd5 62. Rxf4+ Kg3 63. Rg4+ Kf3 64. Bxc8) 60... Rxg2+ {[%emt 0:00:00]} 61. Kxg2 {[%emt 0:00:00] Threatens to win with Bf5. KB-KN} Nd6 {[%emt 0:00:00] Inhibits Bf5.} 62. Bd3 {[%emt 0:00:00] next Kf3 is good for White.} Nf7 $1 {[%emt 0:00:00]} 63. Bf5 {[%emt 0:00:38]} Ne5 $2 {[%emt 0:00:00][%mdl 8192]} (63... Kg5 $1 $11 64. Bc2 Ne5) 64. Kf2 $2 {[%emt 0:01:22]} (64. d6 $18 Kh5 65. Bg4+ (65. d7 Nxd7 66. Kf3 Nc5 $11) 65... Kg5 66. Be6) 64... Kg5 {[%emt 0:00:00]} 65. Bg4 {[%emt 0:00:00]} Kh4 $2 {[%emt 0:00:00][%mdl 8192]} (65... Nxg4+ {is a self mate.} 66. hxg4 Kf6 67. Kf3 Ke5 68. d6 Ke6 69. Kxf4 Kxd6 70. Kg5) (65... Kf6 $11 {and Black stays safe.}) 66. Ke2 $2 {[%emt 0:00:16]} (66. d6 $18 Kg5 67. Be6) 66... Kg3 {[%emt 0:00:00]} 67. d6 {[%emt 0:00:24]} f3+ {[%emt 0:00:00]} (67... Kg2 $11) 68. Bxf3 $1 $16 {[%emt 0:00:36][%cal Of3g4] Strongly threatening Bg4!} Nxf3 $2 {[%emt 0:00:00][%mdl 8192] [#]} (68... Kxh3 $16 69. Bd5 Kg4) 69. d7 $2 {[%emt 0:00:06]} (69. h4 $1 $18 {White threatens d7 and mate.} Nd4+ 70. Kd3) 69... Nd4+ $11 {[%emt 0:00:00]} 70. Ke3 {[%emt 0:00:05]} Nc6 {[%emt 0:07:00] Weighted Error Value: White=0.15 (very precise) /Black=0.12 (very precise)} 1/2-1/2

[Event "Bangabandhu Premier Div League 2022"]
[Site "Dhaka"]
[Date "2022.12.05"]
[Round "6.4"]
[White "Jannatul, Ferdous"]
[Black "Jamal Uddin"]
[Result "0-1"]
[ECO "B41"]
[WhiteElo "1861"]
[BlackElo "2092"]
[Annotator "TA"]
[PlyCount "108"]
[EventDate "2022.11.30"]
[EventType "team-tourn"]
[EventCountry "BAN"]
[SourceTitle "playchess.com"]
[Source "ChessBase"]
[SourceQuality "1"]
[TimeControl "40/5400+30:1800+30"]

{[%evp 14,107,56,58,56,56,60,54,298,83,276,132,253,137,136,118,132,122,200,153,188,191,220,212,209,214,222,225,233,224,223,212,231,237,365,359,358,353,357,343,337,345,401,389,364,345,322,222,316,308,305,300,314,292,418,418,531,547,540,521,523,499,475,472,481,409,387,0,0,0,620,596,578,566,835,0,0,0,293,-5302,-5302,-29995,0,0,0,0,0,-29993,-29994,-29994,-29995,-29997,-29998,-29998,-29999,-29999]} 1. e4 {[%emt 1:31:00]} c5 {[%emt 0:03:24]} 2. Nf3 {[%emt 0:00:00]} e6 {[%emt 0:01:22]} 3. d4 {[%emt 0:00:00]} cxd4 {[%emt 0:00:08]} 4. Nxd4 {[%emt 0:00:00]} a6 {[%emt 0:00:52]} 5. c4 {[%emt 0:00:00]} Nf6 {[%emt 0:01:56]} 6. Nc3 {[%emt 0:00:00]} Qc7 {[%emt 0:01:39]} 7. a3 {[%emt 0:00:00]} b6 {[%emt 0:00:31]} 8. Be3 {[%emt 0:00:00]} Bb7 {[%emt 0:00:52] B41: Sicilian: Kan Variation: 5 c4.} 9. f3 {[%emt 0:00:00]} Nc6 {[%emt 0:03:00]} 10. Rc1 {[%emt 0:00:00] 10.Na4 is the recent fashion.} d6 $2 {[%emt 0:02:30] [#]} ({Black should play} 10... Be7 $14) 11. Be2 $2 {[%emt 0:00:00] [#]} (11. Nd5 $1 $18 {[%cal Rd5c7][%mdl 512] and the rest is easy.} exd5 12. cxd5) 11... g6 $146 {[%emt 0:00:51] [#]} (11... Qd8 $16 {might work better.}) ({Predecessor:} 11... Nxd4 12. Bxd4 Be7 13. O-O O-O 14. Qd2 Rab8 15. Rfd1 Nd7 16. Bf1 f5 17. exf5 Rxf5 {½-½ (44) Jankowiak,P (1992)-Borowski,P (1790) Wroclaw 2020}) 12. O-O {[%emt 0:00:00]} (12. Nd5 $1 $18 {[%cal Rd5c7][%mdl 512]} exd5 13. cxd5) 12... Bg7 {[%emt 0:02:59] [#]} (12... Na7 $16 13. Qd2 Bg7) 13. Nxc6 {[%emt 0:00:00]} (13. Ncb5 $1 $18 {[%mdl 512]} Qd7 14. Nxc6) 13... Qxc6 $16 {[%emt 0:00:53]} 14. Qd4 {[%emt 0:00:00]} O-O {[%emt 0:07:06][%cal Of6g4]} 15. Qxb6 {[%emt 0:00:00]} Bh6 {[%emt 0:00:33]} 16. Rcd1 {[%emt 0:00:00]} Rab8 {[%emt 0:06:30]} 17. Qd4 {[%emt 0:00:00]} e5 {[%emt 0:05:13]} 18. Qd2 {[%emt 0:00:00]} (18. Qxd6 $2 Bxe3+ 19. Kh1 Bd4 20. Rxd4 exd4 21. Qxd4 Qe6 $19) 18... Bxe3+ {[%emt 0:03:25]} 19. Qxe3 {[%emt 0:00:00]} Kg7 {[%emt 0:00:58]} 20. b4 {[%emt 0:00:00]} Rfd8 {[%emt 0:02:04]} 21. Rd2 {[%emt 0:00:00]} Qc7 {[%emt 0:06:31]} 22. Rfd1 {[%emt 0:00:00]} Nh5 {[%emt 0:02:09]} 23. g3 {[%emt 0:00:00] Inhibits Nf4.} Qe7 {[%emt 0:02:17]} (23... Nf6 $142 24. b5 Rbc8) 24. c5 {[%emt 0:00:00]} dxc5 {[%emt 0:04:21]} 25. Rxd8 {[%emt 0:00:00]} (25. bxc5 Rxd2 26. Rxd2 Rc8 $16) (25. Qxc5 Qxc5+ 26. bxc5 Rxd2 27. Rxd2 Nf6 $16) 25... Rxd8 {[%emt 0:00:50]} 26. Rxd8 {[%emt 0:00:00]} (26. bxc5 Rxd1+ 27. Nxd1 (27. Bxd1 Nf6 $16) 27... Nf6 $16) (26. Qxc5 Qxc5+ 27. bxc5 Rc8 $16) 26... Qxd8 {[%emt 0:00:59]} 27. Qxc5 {[%emt 0:00:00]} (27. bxc5 Nf6 $16) 27... Qg5 {[%emt 0:01:11]} 28. Kf2 {[%emt 0:00:00]} Nf6 {[%emt 0:03:45]} 29. Qc7 {[%emt 0:00:00]} Qd2 {[%emt 0:05:44]} 30. Qxb7 {[%emt 0:00:00]} Qd4+ {[%emt 0:00:13]} (30... Qxc3 $142 31. Qxa6 Qd4+ 32. Kg2 Qc3) 31. Kg2 $18 {[%emt 0:00:00]} Qxc3 {[%emt 0:00:14]} 32. Qxa6 {[%emt 0:00:00][%mdl 4096] Endgame KQB-KQN} Qb2 {[%emt 0:00:44]} 33. Qd3 {[%emt 0:00:00]} Nd7 {[%emt 0:00:52]} (33... Ne8 {was necessary.} 34. b5 Nd6) 34. a4 {[%emt 0:00:00][%cal Ba3a4,Ba4a5,Ba5a6][%mdl 32]} Nf8 {[%emt 0:00:18]} 35. b5 {[%emt 0:00:00]} Ne6 {[%emt 0:00:15]} 36. a5 {[%emt 0:00:00]} Nd4 {[%emt 0:00:14]} 37. Kf2 {[%emt 0:00:00]} Qa2 {[%emt 0:00:32]} 38. a6 {[%emt 0:00:00]} Qa5 {[%emt 0:01:10] Prevents b6.} 39. Qc4 {[%emt 0:04:46]} g5 {[%emt 0:10:15]} 40. Qc5 $2 {[%emt 0:12:31]} (40. Kg2 $18) 40... Qd2 $11 {[%emt 0:01:51]} 41. Qc4 {[%emt 0:30:06]} (41. Qxe5+ $2 Kg6 $19) 41... Nc2 $2 {[%emt 0:36:22][%mdl 8192]} (41... Qa5 $11 42. Kf1 h6) 42. Qd3 $18 {[%emt 0:00:00]} Qe1+ {[%emt 0:00:00]} 43. Kg2 {[%emt 0:00:00]} Qc1 {[%emt 0:00:00] ...Ne1+ is the strong threat.} 44. Kh3 $2 {[%emt 0:00:00]} (44. Qd6 $18 Qe3 45. Qxe5+ Kf8 46. Kh3 $1) 44... g4+ $1 $11 {[%emt 0:00:00][%mdl 64] Decoy} 45. Kxg4 {[%emt 0:00:00]} (45. fxg4 $2 {loses.} Qh6+ 46. Kg2 Ne1+ 47. Kf1 Nxd3 $19) 45... Ne3+ $2 {[%emt 0:00:00][%mdl 8192]} (45... Qh6 $1 $11 {and Black is okay.} 46. f4 (46. Qxc2 Qe6+ 47. Kh4 Qh6+ 48. Kg4 Qe6+ 49. Kh4 Qh6+ 50. Kg4 $11) 46... Qg6+ 47. Kh4 Qf6+ 48. Kh5 (48. Kh3 Qh6+ 49. Kg4 Qg6+ 50. Kh4 Qf6+ 51. Kh5 Qh6+ 52. Kg4 $11) 48... Qh6+ 49. Kg4 Qg6+ 50. Kh4 Qf6+ 51. Kh5 (51. Kh3 Qh6+ 52. Kg4 $11) 51... Qh6+ 52. Kg4) 46. Kh4 $4 {[%emt 0:00:00][%mdl 8192] [#]} (46. Kh3 $18 Qg1 47. Bf1 $1 {[%mdl 512]}) 46... Qg1 $1 $19 {[%emt 0:00:00]} 47. h3 {[%emt 0:00:00]} Kg6 $2 {[%emt 0:00:00]} (47... Ng2+ {mates} 48. Kg4 Qb6 49. Qd6 h5+ 50. Kf5 Qxd6 51. h4 Qf6#) 48. Bf1 $1 $11 {[%emt 0:03:17]} Nxf1 {[%emt 0:00:00][%csl Gf1][%cal Rg1g3]} 49. f4 {[%emt 0:00:18]} exf4 {[%emt 0:00:00] ( -> ...Ne3)} 50. Qd6+ $2 {[%emt 0:00:21][%mdl 8192]} (50. Qf3 $11 fxg3 51. Qg4+ Kf6 52. Qf5+ Kg7 53. Qg5+ Kf8 54. Qf6) 50... f6 {[%emt 0:00:00][%csl Gf1,Gf4][%cal Rg1g3] Black mates.} 51. Qxf4 {[%emt 0:00:42]} Ne3 {[%emt 0:00:00]} 52. Qd6 {[%emt 0:02:00]} Ng2+ {[%emt 0:00:00]} 53. Kg4 {[%emt 0:00:03]} h5+ {[%emt 0:00:00]} 54. Kf3 {[%emt 0:00:07]} Qf1# {[%emt 0:00:00] Weighted Error Value: White=0.41/Black=0.59} 0-1

[Event "Bangabandhu Premier Div League 2022"]
[Site "Dhaka"]
[Date "2022.12.05"]
[Round "6.5"]
[White "Mohammed Abdul, Malek"]
[Black "Shawket Bin, Osman Shaon"]
[Result "0-1"]
[ECO "C54"]
[WhiteElo "2152"]
[BlackElo "2069"]
[Annotator "TA"]
[PlyCount "60"]
[EventDate "2022.11.30"]
[EventType "team-tourn"]
[EventCountry "BAN"]
[SourceTitle "playchess.com"]
[Source "ChessBase"]
[SourceQuality "1"]
[TimeControl "40/5400+30:1800+30"]

{[%evp 14,60,35,12,14,9,16,18,19,10,33,34,29,11,6,12,6,-97,-10,-23,-31,-23,-26,-59,-59,-97,-88,-312,-67,-89,-47,-591,-611,-670,-665,-643,-604,-598,-593,-558,-581,-551,-541,-839,-819,-665,2322,-29990,-29988]} 1. e4 {[%emt 0:00:15]} e5 {[%emt 0:00:12]} 2. Nf3 {[%emt 0:00:08]} Nc6 {[%emt 0:00:04]} 3. Bc4 {[%emt 0:00:06]} Bc5 {[%emt 0:00:11]} 4. c3 {[%emt 0:00:16]} Nf6 {[%emt 0:00:27]} 5. d3 {[%emt 0:00:05]} d6 {[%emt 0:03:21]} 6. O-O {[%emt 0:00:49]} h6 {[%emt 0:03:05]} 7. Nbd2 {[%emt 0:00:12]} O-O {[%emt 0:02:50]} 8. h3 {[%emt 0:00:57]} (8. b4 $5 {[%cal Rb4c5]} Bb6 9. h3 $11) 8... a6 {[%emt 0:04:49] C54: Giuoco Piano: 4 c3 Nf6, main lines with 5 d4 and 5 d3.} 9. a4 {[%emt 0:00:21] now scores much better than the old 9.Bb3.} Ba7 {[%emt 0:02:14]} 10. Re1 {[%emt 0:00:33]} Be6 {[%emt 0:03:11] The position is equal.} (10... Nh5 {is more complex.} 11. Nf1 Qf6 12. Be3 Be6) 11. b4 {[%emt 0:00:21]} Ne7 {[%emt 0:04:34]} 12. Bxe6 {[%emt 0:04:21]} fxe6 {[%emt 0:00:07]} 13. Qb3 {[%emt 0:00:05]} (13. Nf1 {simplifies} Nc6 14. Be3 Bxe3 15. Rxe3 Qe8 16. N1d2) 13... Qd7 {[%emt 0:00:39]} 14. Nf1 {[%emt 0:01:46] [#]} Nh5 $146 {[%emt 0:04:26][%cal Of8f3] ...Rxf3! is the strong threat.} ({Predecessor:} 14... Ng6 15. Ng3 Kh7 16. Be3 Rf7 17. d4 exd4 18. cxd4 Raf8 19. Nh2 d5 20. e5 Ng8 {1-0 (46) Michalik,P (2594)-Jirka,J (2392) Chess.com INT 2021}) 15. d4 {[%emt 0:00:36] [#]} (15. N1h2 $11) 15... exd4 {[%emt 0:07:45]} (15... Rxf3 $1 $17 16. gxf3 Ng6) 16. Nxd4 {[%emt 0:03:33]} Kh8 {[%emt 0:00:13] Strongly threatening ...e5.} 17. Be3 {[%emt 0:12:45]} Nf4 {[%emt 0:05:29]} 18. Bxf4 {[%emt 0:02:36]} Rxf4 {[%emt 0:00:55]} 19. Ra2 {[%emt 0:00:51]} e5 {[%emt 0:02:16]} 20. Nf3 {[%emt 0:05:03] [#]} (20. Qe6 $17 {keeps fighting.} Qxe6 21. Nxe6) 20... Raf8 $2 {[%emt 0:01:53]} ({Black should try} 20... Rxf3 $1 $19 {[%mdl 512]} 21. gxf3 Ng6) 21. N1h2 $1 $15 {[%emt 0:01:00]} Ng6 {[%emt 0:00:36][%cal Of4f3,Be7g6,Bg6h4,Bh4f3][%mdl 32] aiming for ...Rxf3! Black is more active.} 22. Rd2 $2 {[%emt 0:00:58][%mdl 8192] [#]} (22. c4 $1 $15) 22... Rxf3 $1 $19 {[%emt 0:06:52][%mdl 512]} 23. gxf3 {[%emt 0:01:02]} (23. Nxf3 Rxf3) 23... Qxh3 {[%emt 0:00:26] ( -> ...Nh4)} 24. Qc4 {[%emt 0:05:32]} Nh4 {[%emt 0:07:16][%csl Gh4][%cal Rh3g2]} 25. Qf1 {[%emt 0:00:44] Inhibits Qg2+.} Nxf3+ {[%emt 0:00:18]} 26. Nxf3 {[%emt 0:00:25]} Qxf3 {[%emt 0:00:02]} 27. Qg2 {[%emt 0:05:44]} Qxc3 {[%emt 0:00:27]} 28. Rde2 {[%emt 0:02:13] [#]} Bxf2+ $1 {[%emt 0:01:14][%mdl 512]} 29. Qxf2 {[%emt 0:00:54]} Rf7 $4 {[%emt 0:39:08][%mdl 8192]} 30. Qf3 $4 {[%mdl 8192]} Rxf3 {[%emt 0:00:00] Never resign too early!   Weighted Error Value: White=0.81/Black=0.31} 0-1